bitfinex-derivatives/quotes_SOLF0:USTF0_20250714
["timestamp","ask_amount","ask_price","bid_price","bid_amount"]
[1752452940558,3.35,161.58,161.55,3.41]
[1752452941158,3.61,161.57,161.56,3.47]
[1752452942471,3.61,161.57,161.54,3.47]
[1752452942765,6.64008416,161.57,161.5,6.50008416]
[1752452943066,3.61,161.55,161.51,9.6585]
[1752452943662,6.1874,161.55,161.51,3.47]
[1752452943866,3.61,161.54,161.51,3.47]
[1752452944266,3.61,161.52,161.51,3.47]
[1752452945067,3.61,161.52,161.49,3.47]
[1752452945269,3.61,161.51,161.5,3.47]
[1752452946568,3.61,161.55,161.51,3.47]
[1752452946761,6.1878,161.54,161.5,6.1891]
[1752452946963,3.61,161.53,161.51,3.47]
[1752452947463,3.61,161.53,161.5,3.47]
[1752452947667,3.61,161.52,161.49,3.47]
[1752452947868,3.03008416,161.56,161.49,3.47]
[1752452948068,3.61,161.51,161.5,3.47]
[1752452948264,3.61,161.51,161.5,9.6591]
[1752452948572,3.61,161.51,161.5,3.47]
[1752452949271,3.61,161.51,161.49,3.47]
[1752452949770,3.61,161.5,161.49,3.47]
[1752452950469,6.1886,161.52,161.48,6.1897]
[1752452950771,3.61,161.51,161.48,3.47]
[1752452951168,3.61,161.5,161.48,3.47]
[1752452951479,3.61,161.49,161.47,3.47]
[1752452952373,3.61,161.49,161.46,9.6604]
[1752452952871,3.61,161.5,161.47,9.6603]
[1752452953274,3.03008416,161.52,161.43,180.28]
[1752452953275,3.61,161.49,161.48,9.6598]
[1752452953574,3.61,161.49,161.48,3.47]
[1752452954169,3.61,161.49,161.43,180.28]
[1752452954369,3.61,161.48,161.47,3.47]
[1752452955275,3.61,161.48,161.47,9.6602]
[1752452958378,3.61,161.47,161.46,9.6605]
[1752452958576,3.61,161.52,161.46,3.47]
[1752452959264,6.1895,161.5,161.46,3.47]
[1752452959477,3.61,161.49,161.47,3.47]
[1752452959873,3.61,161.49,161.47,9.6601]
[1752452960080,3.61,161.48,161.47,9.6601]
[1752452961067,3.61,161.48,161.47,3.47]
[1752452961272,3.61,161.48,161.46,9.6605]
[1752452961471,6.1897,161.49,161.46,3.47]
[1752452961677,3.61,161.47,161.46,9.6607]
[1752452962181,180.38,161.57,161.46,3.47]
[1752452962379,3.61,161.49,161.46,6.50008416]
[1752452962573,3.61,161.53,161.47,3.47]
[1752452962774,3.61,161.49,161.47,9.66]
[1752452963274,3.61,161.48,161.47,3.47]
[1752452963573,3.61,161.48,161.45,6.50008416]
[1752452963782,3.61,161.48,161.46,3.47]
[1752452963974,3.61,161.47,161.46,3.47]
[1752452964877,3.61,161.47,161.46,9.6607]
[1752452965380,3.61,161.47,161.46,3.47]
[1752452965579,3.61,161.47,161.45,9.6608]
[1752452966582,3.61,161.47,161.44,12.69138416]
[1752452966784,3.61,161.47,161.45,3.47]
[1752452966979,6.1896,161.49,161.45,3.47]
[1752452967182,3.61,161.46,161.45,9.661]
[1752452967881,3.61,161.46,161.45,3.47]
[1752452968978,6.64008416,161.54,161.45,3.47]
[1752452969179,3.61,161.53,161.47,3.47]
[1752452969778,6.1886,161.52,161.49,6.1893]
[1752452969977,3.61,161.51,161.49,3.47]
[1752452970182,3.61,161.51,161.47,3.47]
[1752452970483,3.44,161.5,161.48,9.6699]
[1752452970884,3.44,161.48,161.46,3.48]
[1752452971076,3.44,161.48,161.45,3.48]
[1752452971682,3.44,161.48,161.45,9.6707]
[1752452971984,6.1899,161.48,161.45,9.6707]
[1752452972180,3.44,161.46,161.45,3.48]
[1752452972379,3.44,161.46,161.45,9.671]
[1752452973382,3.44,161.47,161.45,9.671]
[1752452973685,3.44,161.47,161.46,9.6707]
[1752452974085,3.44,161.47,161.46,3.48]
[1752452975685,3.44,161.47,161.46,9.6707]
[1752452977385,3.44,161.47,161.45,9.6709]
[1752452978277,3.44,161.47,161.46,3.48]
[1752452978687,3.44,161.47,161.46,9.6707]
[1752452979182,7.95704647,161.47,161.46,9.6707]
[1752452979590,7.95704647,161.47,161.46,6.1907]
[1752452980291,3.44,161.46,161.45,9.6708]
[1752452980484,3.44,161.45,161.44,3.48]
[1752452980690,3.44,161.45,161.43,3.48]
[1752452980994,3.44,161.45,161.42,3.48]
[1752452981491,3.44,161.45,161.44,9.6714]
[1752452981690,7.97070844,161.45,161.44,9.6714]
[1752452983987,4.53070844,161.45,161.44,9.6714]
[1752452984289,3.44,161.47,161.46,9.6707]
[1752452984491,4.53137082,161.47,161.46,9.6707]
[1752452985683,6.85727915,161.53,161.49,3.48]
[1752452985884,3.44,161.55,161.52,6.51444132]
[1752452986084,3.44,161.55,161.54,6.51444132]
[1752452986384,3.44,161.57,161.54,3.03444132]
[1752452986588,534.44,161.6,161.54,3.03444132]
[1752452986784,534.44,161.6,161.55,9.6669]
[1752452986785,3.44,161.56,161.55,9.6669]
[1752452986985,10.29727915,161.56,161.55,9.6669]
[1752452987487,6.85727915,161.56,161.55,9.6669]
[1752452987689,3.44,161.55,161.54,12.70194132]
[1752452987995,3.44,161.55,161.54,9.6675]
[1752452988193,3.44,161.55,161.54,6.1875]
[1752452988594,3.44,161.55,161.54,9.6675]
[1752452989597,3.44,161.55,161.53,9.6678]
[1752452989986,3.44,161.55,161.53,3.48]
[1752452990185,3.44,161.55,161.54,6.1876]
[1752452991297,3.44,161.55,161.54,9.6676]
[1752452991692,6.85727915,161.56,161.55,9.6672]
[1752452991893,3.44,161.57,161.56,3.48]
[1752452992592,3.44,161.57,161.56,9.6668]
[1752452994000,3.44,161.57,161.51,3.0334198]
[1752452994201,3.44,161.57,161.52,3.48]
[1752452994498,3.44,161.57,161.53,3.48]
[1752452994794,3.44,161.56,161.49,3.48]
[1752452995101,3.44,161.54,161.5,3.48]
[1752452995296,3.44,161.53,161.5,9.6689]
[1752452995795,3.44,161.53,161.48,3.0334198]
[1752452996001,3.44,161.54,161.52,3.48]
[1752452996196,3.44,161.56,161.52,3.48]
[1752452996398,6.1875,161.55,161.52,3.48]
[1752452996595,3.44,161.54,161.52,3.48]
[1752452997098,9.6277,161.54,161.52,3.48]
[1752452997397,3.44,161.53,161.52,3.48]
[1752452997795,3.44,161.53,161.5,6.189]
[1752452997996,3.44,161.52,161.51,3.48]
[1752452999197,9.6284,161.52,161.5,6.189]
[1752452999392,3.44,161.51,161.48,3.0334198]
[1752452999700,3.44,161.51,161.5,3.48]
[1752453000298,3.44,161.51,161.47,9.59]
[1752453000503,3.0334198,161.53,161.47,9.59]
[1752453000504,3.4,161.5,161.47,9.59]
[1752453000901,6.1893,161.5,161.47,9.59]
[1752453001102,3.4,161.48,161.47,3.4]
[1752453001704,3.4,161.48,161.47,9.5903]
[1752453002102,3.4,161.48,161.47,3.4]
[1752453002299,3.4,161.47,161.41,180.36]
[1752453002499,3.4,161.47,161.43,3.4]
[1752453002699,3.4,161.46,161.44,6.1911]
[1752453002898,3.0334198,161.47,161.4,3.0334198]
[1752453003109,3.4,161.46,161.41,3.4]
[1752453003401,3.0334198,161.49,161.41,3.4]
[1752453003599,3.4,161.48,161.41,3.4]
[1752453003900,3.4,161.45,161.43,9.5918]
[1752453004401,9.5911,161.45,161.43,3.4]
[1752453004602,3.4,161.44,161.43,3.4]
[1752453004805,3.4,161.44,161.4,3.0334198]
[1752453005008,3.4,161.44,161.36,187.24871055]
[1752453005304,3.4,161.44,161.39,3.4]
[1752453005604,9.5916,161.44,161.41,6.1925]
[1752453005809,3.4,161.43,161.41,9.5925]
[1752453006004,3.4,161.43,161.38,3.0334198]
[1752453006304,3.4,161.43,161.39,3.4]
[1752453006500,3.4,161.43,161.4,3.4]
[1752453006903,6.192,161.43,161.4,9.5926]
[1752453007103,3.4,161.41,161.4,9.5926]
[1752453007304,3.4,161.41,161.4,3.4]
[1752453008098,3.4,161.41,161.4,9.593]
[1752453008305,3.4,161.41,161.4,3.4]
[1752453008609,3.4,161.41,161.39,9.5931]
[1752453009007,3.4,161.41,161.37,3.4]
[1752453009208,3.4,161.41,161.39,6.1931]
[1752453009409,3.4,161.41,161.37,3.4]
[1752453009410,3.4,161.41,161.35,349.3068139]
[1752453009612,3.4,161.41,161.36,3.4]
[1752453009808,3.4,161.4,161.36,3.4]
[1752453010105,3.4,161.39,161.36,3.4]
[1752453010511,3.4,161.39,161.38,9.5937]
[1752453010710,3.4,161.42,161.38,3.4]
[1752453010912,3.4,161.42,161.36,3.4]
[1752453011407,3.4,161.42,161.4,6.1927]
[1752453012305,9.5922,161.42,161.4,6.1927]
[1752453012614,3.4,161.41,161.4,6.1927]
[1752453013308,3.4,161.41,161.39,9.5933]
[1752453013511,3.4,161.41,161.39,6.1933]
[1752453013710,3.4,161.41,161.39,9.5933]
[1752453013907,3.4,161.4,161.39,9.5933]
[1752453014313,3.4,161.4,161.39,6.1933]
[1752453014511,3.4,161.4,161.38,6.1937]
[1752453015206,3.4,161.4,161.38,9.5937]
[1752453015402,3.4,161.4,161.39,6.1933]
[1752453015601,3.4,161.4,161.38,3.4]
[1752453016001,3.4,161.4,161.36,3.4]
[1752453016002,3.4,161.39,161.36,3.4]
[1752453016601,9.5934,161.39,161.36,9.5942]
[1752453016806,3.4,161.38,161.36,3.4]
[1752453017014,3.0334198,161.41,161.36,3.4]
[1752453017213,3.4,161.4,161.37,9.5939]
[1752453017415,3.4,161.4,161.37,3.4]
[1752453017612,3.0334198,161.42,161.36,3.4]
[1752453017914,3.4,161.38,161.37,9.5941]
[1752453018418,3.4,161.39,161.37,3.4]
[1752453018608,3.4,161.39,161.36,3.4]
[1752453018812,3.4,161.38,161.37,9.5941]
[1752453020317,6.1929,161.41,161.38,6.1934]
[1752453020518,3.4,161.39,161.37,3.4]
[1752453020820,3.4,161.38,161.37,9.5939]
[1752453021414,3.4,161.38,161.32,180.4]
[1752453021621,6.1936,161.39,161.36,9.5942]
[1752453021917,3.4,161.37,161.36,9.5942]
[1752453022513,3.4,161.37,161.36,3.4]
[1752453023324,3.4,161.37,161.35,6.1947]
[1752453023516,3.4,161.36,161.34,9.5951]
[1752453023822,3.4,161.36,161.34,3.4]
[1752453024014,6.4334198,161.36,161.28,3.4]
[1752453024217,3.4,161.35,161.29,3.4]
[1752453024417,6.1953,161.34,161.29,3.4]
[1752453024720,3.0334198,161.36,161.29,3.4]
[1752453024721,3.4,161.32,161.29,3.4]
[1752453025221,3.4,161.32,161.31,9.5962]
[1752453025523,6.1957,161.33,161.3,6.1967]
[1752453025718,3.4,161.31,161.3,3.4]
[1752453025921,3.4,161.3,161.28,3.4]
[1752453026218,3.4,161.29,161.28,9.5973]
[1752453026921,6.1962,161.32,161.28,3.4]
[1752453027118,3.4,161.3,161.28,3.4]
[1752453027621,3.4,161.3,161.29,3.4]
[1752453027818,3.4,161.3,161.25,3.4]
[1752453028117,3.4,161.3,161.27,6.1977]
[1752453028419,3.4,161.3,161.25,3.4]
[1752453028817,3.4,161.29,161.27,3.4]
[1752453029125,3.4,161.29,161.25,3.4]
[1752453029320,3.4,161.29,161.28,6.1976]
[1752453030224,3.4,161.29,161.28,9.5976]
[1752453030728,3.4,161.29,161.28,6.1976]
[1752453031022,3.4,161.29,161.26,3.36]
[1752453031216,3.4,161.29,161.24,3.36]
[1752453031427,3.47,161.28,161.22,3.36]
[1752453031818,3.0334198,161.31,161.24,3.36]
[1752453032016,3.47,161.27,161.24,3.36]
[1752453032216,3.47,161.32,161.26,3.36]
[1752453032527,3.47,161.31,161.29,6.1969]
[1752453033216,3.47,161.33,161.29,3.0334198]
[1752453033420,3.47,161.35,161.31,3.0334198]
[1752453033727,3.47,161.35,161.34,6.1952]
[1752453033927,3.47,161.35,161.33,3.36]
[1752453034126,3.47,161.34,161.33,3.36]
[1752453034827,3.47,161.34,161.3,3.36]
[1752453035423,3.47,161.34,161.28,3.36]
[1752453035828,3.47,161.34,161.27,3.36]
[1752453036127,3.47,161.34,161.28,3.36]
[1752453036327,3.47,161.32,161.3,6.1966]
[1752453036528,3.47,161.31,161.3,6.1966]
[1752453036926,3.47,161.34,161.29,9.5569]
[1752453037123,3.47,161.34,161.29,6.1969]
[1752453037326,3.47,161.34,161.28,3.36]
[1752453037625,3.47,161.34,161.2,15.4342198]
[1752453037626,6.5034198,161.34,161.25,3.36]
[1752453037827,3.47,161.31,161.25,6.3934198]
[1752453038023,3.47,161.31,161.26,3.36]
[1752453038221,3.47,161.3,161.26,3.36]
[1752453039227,3.47,161.3,161.29,3.36]
[1752453039429,3.47,161.3,161.25,3.0334198]
[1752453039629,9.667,161.3,161.27,6.1979]
[1752453039926,3.47,161.28,161.27,9.5579]
[1752453041229,6.1965,161.31,161.29,6.1971]
[1752453041531,3.47,161.3,161.29,6.1971]
[1752453042128,3.47,161.35,161.3,3.36]
[1752453042330,3.47,161.35,161.31,3.36]
[1752453042628,715.82,161.4,161.29,3.0334198]
[1752453042629,3.47,161.34,161.33,9.5556]
[1752453044029,3.47,161.34,161.33,6.1956]
[1752453044827,3.47,161.35,161.28,3.0334198]
[1752453045029,6.196,161.33,161.29,3.36]
[1752453045231,3.47,161.32,161.29,3.36]
[1752453045531,3.47,161.32,161.3,6.1967]
[1752453045731,6.1961,161.32,161.29,3.36]
[1752453045931,3.47,161.3,161.29,9.5572]
[1752453046925,6.1954,161.34,161.3,3.36]
[1752453047132,6.1954,161.34,161.27,3.0334198]
[1752453047333,3.47,161.32,161.31,3.36]
[1752453047932,3.47,161.32,161.31,9.5562]
[1752453048333,3.47,161.32,161.31,6.1962]
[1752453051431,3.47,161.32,161.31,3.36]
[1752453051736,3.47,161.34,161.28,3.36]
[1752453051939,3.47,161.3,161.26,3.36]
[1752453052125,3.47,161.32,161.29,6.1969]
[1752453052530,3.47,161.31,161.29,6.1969]
[1752453052937,3.47,161.31,161.3,6.1968]
[1752453054937,3.47,161.32,161.29,9.557]
[1752453055436,3.47,161.31,161.29,9.557]
[1752453055833,9.6664,161.31,161.29,9.557]
[1752453056134,3.47,161.32,161.29,9.557]
[1752453056335,3.47,161.32,161.3,6.1967]
[1752453056936,3.47,161.32,161.3,9.5567]
[1752453057436,3.47,161.32,161.3,6.1967]
[1752453058137,6.1962,161.32,161.3,6.1967]
[1752453058339,3.47,161.31,161.3,6.1967]
[1752453058541,3.47,161.3,161.29,9.557]
[1752453059534,3.47,161.31,161.3,9.5567]
[1752453060334,3.56,161.35,161.31,3.37]
[1752453060545,3.56,161.35,161.32,3.37]
[1752453060840,3.56,161.35,161.34,9.565]
[1752453061139,3.56,161.37,161.34,3.37]
[1752453061343,3.56,161.39,161.37,6.1939]
[1752453061533,3.56,161.38,161.37,9.5639]
[1752453061729,3.56,161.39,161.38,3.37]
[1752453062139,3.56,161.39,161.38,9.5637]
[1752453062637,3.56,161.39,161.38,3.37]
[1752453062937,3.56,161.38,161.37,9.564]
[1752453063137,3.0334198,161.42,161.37,9.564]
[1752453063138,3.0334198,161.42,161.37,3.37]
[1752453063340,3.56,161.39,161.38,3.37]
[1752453064836,3.56,161.39,161.35,3.0334198]
[1752453065143,3.56,161.39,161.33,3.37]
[1752453065638,6.194,161.38,161.35,6.1945]
[1752453065829,3.56,161.37,161.35,9.5645]
[1752453066034,3.56,161.37,161.32,3.0334198]
[1752453066035,3.56,161.37,161.32,6.4034198]
[1752453066240,6.1944,161.37,161.34,6.1952]
[1752453066636,3.56,161.35,161.34,3.37]
[1752453066841,9.7544,161.37,161.35,6.1949]
[1752453067140,3.56,161.36,161.35,9.5649]
[1752453067342,3.56,161.36,161.35,3.37]
[1752453067540,3.56,161.36,161.34,6.1952]
[1752453067838,3.56,161.35,161.34,3.37]
[1752453068241,3.56,161.35,161.26,6.88871055]
[1752453068439,3.56,161.35,161.28,3.37]
[1752453068641,3.0334198,161.34,161.3,6.1967]
[1752453068942,3.56,161.33,161.3,6.1967]
[1752453069139,3.56,161.32,161.31,3.37]
[1752453069344,3.56,161.32,161.31,9.5664]
[1752453071345,3.56,161.32,161.31,3.37]
[1752453071641,3.56,161.33,161.29,3.37]
[1752453071844,6.1961,161.32,161.3,9.5667]
[1752453072044,3.56,161.31,161.3,3.37]
[1752453073447,6.1961,161.32,161.29,9.567]
[1752453073649,3.56,161.3,161.29,3.37]
[1752453074150,3.56,161.3,161.29,9.5672]
[1752453074648,3.56,161.3,161.29,3.37]
[1752453076950,3.56,161.3,161.29,9.5672]
[1752453079450,3.56,161.3,161.29,6.1972]
[1752453079657,3.56,161.3,161.27,3.0334198]
[1752453079658,3.56,161.29,161.27,3.37]
[1752453080556,3.56,161.29,161.24,183.5534198]
[1752453080557,3.56,161.29,161.25,3.37]
[1752453080752,3.56,161.31,161.26,3.0334198]
[1752453081052,5.17490747,161.37,161.3,3.37]
[1752453081260,3.56,161.36,161.3,6.4034198]
[1752453081457,3.56,161.36,161.31,3.37]
[1752453082861,3.56,161.36,161.32,6.1959]
[1752453083049,3.56,161.36,161.25,6.88871055]
[1752453083354,753.57237915,161.42,161.29,6.1969]
[1752453083355,6.1962,161.32,161.29,6.1969]
[1752453083552,3.0334198,161.34,161.29,9.5669]
[1752453083553,3.56,161.31,161.29,9.5669]
[1752453083756,3.56,161.31,161.29,6.1969]
[1752453084062,3.56,161.31,161.3,9.5668]
[1752453084262,3.56,161.31,161.3,3.37]
[1752453084662,3.56,161.31,161.29,6.197]
[1752453084863,3.56,161.3,161.29,9.567]
[1752453086468,3.56,161.3,161.28,6.1974]
[1752453086763,3.56,161.29,161.28,9.5674]
[1752453088462,3.56,161.29,161.28,3.37]
[1752453088662,3.56,161.29,161.27,9.5678]
[1752453088867,3.56,161.28,161.27,9.5678]
[1752453089071,3.56,161.28,161.27,3.37]
[1752453090464,3.66,161.27,161.24,3.4]
[1752453090859,9.8583,161.27,161.24,9.5989]
[1752453091062,3.66,161.26,161.24,9.5989]
[1752453091265,3.66,161.28,161.24,3.4]
[1752453091458,3.66,161.28,161.25,3.4]
[1752453091659,9.8576,161.28,161.25,9.5984]
[1752453091863,3.66,161.26,161.25,9.5984]
[1752453092071,3.66,161.26,161.25,3.4]
[1752453092474,3.66,161.26,161.24,9.5988]
[1752453092871,3.66,161.26,161.24,6.1988]
[1752453093171,3.66,161.26,161.25,6.1987]
[1752453094665,3.66,161.26,161.24,9.599]
[1752453095165,3.66,161.25,161.24,9.599]
[1752453097074,3.66,161.27,161.26,6.1982]
[1752453097474,3.66,161.27,161.25,9.5985]
[1752453097974,3.66,161.32,161.25,3.4]
[1752453098174,3.66,161.33,161.28,3.04441872]
[1752453098370,6.1954,161.34,161.29,3.4]
[1752453098572,3.66,161.32,161.3,6.1964]
[1752453098772,3.66,161.32,161.31,3.4]
[1752453099375,3.66,161.32,161.31,9.5964]
[1752453101083,3.66,161.38,161.29,3.4]
[1752453101277,3.04441872,161.37,161.29,3.4]
[1752453101481,6.1949,161.35,161.29,3.4]
[1752453101675,3.66,161.33,161.32,6.1958]
[1752453101872,3.66,161.33,161.32,9.5958]
[1752453102178,3.04441872,161.39,161.33,9.5954]
[1752453102373,3.66,161.38,161.33,6.1954]
[1752453102579,3.04441872,161.39,161.33,6.1954]
[1752453102580,3.66,161.35,161.33,3.4]
[1752453102771,3.66,161.38,161.33,3.4]
[1752453103180,3.66,161.36,161.33,3.4]
[1752453103373,3.66,161.35,161.34,9.5951]
[1752453105184,3.66,161.35,161.34,3.4]
[1752453105687,3.66,161.35,161.33,6.1955]
[1752453105885,3.66,161.34,161.33,9.5955]
[1752453107085,6.1942,161.37,161.32,3.04441872]
[1752453107086,3.66,161.36,161.35,3.4]
[1752453107479,3.66,161.36,161.33,3.4]
[1752453107679,3.66,161.35,161.34,3.4]
[1752453107880,3.66,161.35,161.34,9.5953]
[1752453109185,3.66,161.35,161.33,9.5955]
[1752453109489,3.66,161.35,161.33,3.4]
[1752453109683,3.66,161.35,161.3,3.04441872]
[1752453109684,535.26,161.42,161.3,3.04441872]
[1752453109886,3.66,161.34,161.33,3.4]
[1752453110186,3.66,161.34,161.33,9.5956]
[1752453113691,3.66,161.34,161.33,3.4]
[1752453113884,6.1953,161.34,161.32,9.5959]
[1752453114084,6.1953,161.34,161.31,6.1962]
[1752453114085,3.66,161.33,161.31,6.1962]
[1752453114284,3.66,161.33,161.31,9.5962]
[1752453114486,3.66,161.33,161.28,3.04441872]
[1752453114487,3.66,161.32,161.29,3.4]
[1752453114789,3.66,161.32,161.31,6.1964]
[1752453114990,3.66,161.32,161.31,9.5964]
[1752453116890,3.04441872,161.36,161.31,9.5964]
[1752453116891,3.66,161.36,161.31,3.4]
[1752453117990,3.66,161.35,161.31,3.4]
[1752453118191,3.66,161.34,161.31,3.4]
[1752453118387,6.1935,161.39,161.36,6.1944]
[1752453118592,3.04107377,161.41,161.36,9.5944]
[1752453118987,3.66,161.4,161.37,3.4]
[1752453119293,3.66,161.4,161.36,9.5944]
[1752453119795,3.66,161.4,161.28,3.04107377]
[1752453119796,3.66,161.4,161.34,3.4]
[1752453120295,6.1941,161.37,161.34,9.595]
[1752453120593,3.41,161.35,161.32,3.6]
[1752453120789,3.41,161.37,161.34,3.6]
[1752453121089,3.41,161.36,161.34,3.6]
[1752453121295,3.41,161.38,161.36,6.1945]
[1752453121497,3.41,161.37,161.36,3.6]
[1752453121894,3.41,161.36,161.34,3.6]
[1752453122289,6.1943,161.37,161.34,9.7951]
[1752453122491,3.41,161.41,161.37,3.6]
[1752453122693,3.41,161.41,161.38,3.6]
[1752453122889,3.41,161.41,161.35,3.6]
[1752453123186,3.41,161.38,161.35,3.6]
[1752453123389,3.41,161.38,161.34,3.6]
[1752453123586,3.41,161.34,161.32,3.6]
[1752453123790,3.41,161.36,161.3,3.6]
[1752453124092,3.03999495,161.37,161.33,3.6]
[1752453124093,3.41,161.34,161.33,3.6]
[1752453124301,3.41,161.34,161.3,3.6]
[1752453124487,6.1961,161.32,161.3,3.6]
[1752453124692,3.41,161.31,161.3,3.6]
[1752453124891,3.41,161.34,161.3,3.6]
[1752453125093,9.6056,161.34,161.3,3.6]
[1752453125296,3.41,161.33,161.32,3.6]
[1752453125888,3.41,161.33,161.32,9.7959]
[1752453126088,3.41,161.35,161.33,3.6]
[1752453126296,3.41,161.35,161.29,3.03999495]
[1752453126498,3.41,161.33,161.32,3.6]
[1752453127899,3.03999495,161.38,161.31,6.1963]
[1752453127900,3.41,161.35,161.31,3.03999495]
[1752453128101,3.41,161.35,161.34,3.6]
[1752453128601,6.1953,161.34,161.32,6.196]
[1752453128798,9.6053,161.34,161.33,3.6]
[1752453129504,3.41,161.34,161.33,3.6]
[1752453129798,3.41,161.34,161.33,9.7956]
[1752453130202,3.41,161.33,161.31,3.6]
[1752453130700,9.606,161.32,161.31,3.6]
[1752453131503,3.41,161.32,161.31,3.6]
[1752453132805,3.41,161.35,161.34,3.6]
[1752453135104,9.6049,161.35,161.34,3.6]
[1752453135804,6.1953,161.34,161.32,9.7959]
[1752453136002,6.1953,161.34,161.33,3.6]
[1752453136203,3.03999495,161.39,161.33,9.7954]
[1752453136508,3.41,161.35,161.34,3.6]
[1752453136708,3.41,161.35,161.32,6.1957]
[1752453136909,6.1951,161.35,161.33,3.6]
[1752453137111,3.41,161.34,161.33,3.6]
[1752453137710,3.41,161.34,161.33,9.7956]
[1752453138709,3.41,161.36,161.31,3.03999495]
[1752453138916,3.41,161.38,161.35,3.6]
[1752453139112,3.41,161.39,161.35,3.6]
[1752453139814,3.41,161.41,161.37,3.6]
[1752453140014,3.41,161.4,161.38,6.1935]
[1752453140217,3.41,161.4,161.39,3.6]
[1752453141012,9.603,161.4,161.39,3.6]
[1752453141214,3.41,161.39,161.37,3.6]
[1752453142017,3.41,161.4,161.38,3.6]
[1752453142217,3.41,161.44,161.39,3.6]
[1752453143024,183.50069383,161.46,161.39,3.6]
[1752453143225,3.41,161.43,161.39,3.6]
[1752453143621,6.1918,161.44,161.41,3.6]
[1752453143821,3.41,161.43,161.42,3.6]
[1752453144222,9.6018,161.43,161.42,3.6]
[1752453144525,3.41,161.43,161.39,3.6]
[1752453144725,183.50069383,161.46,161.41,3.6]
[1752453144920,3.41,161.45,161.41,3.6]
[1752453146629,3.41,161.45,161.39,6.193]
[1752453147121,3.41,161.43,161.39,3.6]
[1752453147327,3.41,161.43,161.37,3.6]
[1752453148122,3.41,161.39,161.38,3.6]
[1752453148729,3.41,161.39,161.38,9.7937]
[1752453149127,3.41,161.43,161.39,6.1932]
[1752453149331,3.41,161.43,161.4,3.6]
[1752453149723,3.41,161.42,161.4,3.6]
[1752453149923,3.41,161.45,161.4,3.6]
[1752453150827,3.44,161.42,161.4,9.7927]
[1752453151027,3.44,161.42,161.41,3.45]
[1752453151632,3.44,161.42,161.41,9.6426]
[1752453153033,3.44,161.42,161.33,6.88871055]
[1752453153034,3.44,161.43,161.42,9.6421]